bitfinex-derivatives/quotes_BTCF0:USTF0_20250722
["timestamp","ask_amount","ask_price","bid_price","bid_amount"]
[1753198468697,1.60655,119180.0,119170.0,1.22923786]
[1753198469098,1.56162,119180.0,119170.0,1.61524939]
[1753198469302,1.5,119180.0,119170.0,1.65524939]
[1753198469509,1.5,119180.0,119170.0,1.30524939]
[1753198470207,1.56162,119180.0,119170.0,1.30524939]
[1753198470608,1.56162,119180.0,119170.0,1.30624939]
[1753198471106,1.5,119180.0,119170.0,1.68624939]
[1753198471406,0.2515396,119210.0,119200.0,0.4194263]
[1753198471407,0.09992,119210.0,119200.0,0.4194263]
[1753198471601,0.09992,119210.0,119200.0,2.16912202]
[1753198471802,0.2676009,119210.0,119200.0,2.16912202]
[1753198471999,0.2676009,119210.0,119200.0,2.18765046]
[1753198472203,0.04076,119230.0,119220.0,0.2434812]
[1753198472505,0.2491427,119230.0,119220.0,1.72417692]
[1753198472705,0.2491427,119230.0,119220.0,0.9264868]
[1753198473010,0.2491427,119230.0,119220.0,0.8843768]
[1753198473406,0.3556927,119230.0,119220.0,0.8843768]
[1753198473610,0.3556927,119230.0,119220.0,0.2736568]
[1753198473810,0.3556927,119230.0,119220.0,0.8843368]
[1753198474309,0.3741227,119230.0,119220.0,0.8843368]
[1753198474811,0.3741368,119220.0,119210.0,0.6043008]
[1753198475108,0.20647,119220.0,119210.0,1.69378652]
[1753198475304,0.3557067,119220.0,119210.0,1.69378652]
[1753198475607,0.18804,119220.0,119210.0,1.69378652]
[1753198475809,0.3557067,119220.0,119210.0,1.69378652]
[1753198476009,0.18804,119220.0,119210.0,1.69378652]
[1753198476310,0.18804,119220.0,119210.0,1.69478652]
[1753198476512,0.18804,119220.0,119210.0,1.69470652]
[1753198476711,0.3557067,119220.0,119210.0,1.69470652]
[1753198476911,0.18804,119220.0,119210.0,1.69470652]
[1753198477106,0.06162,119220.0,119210.0,1.69470652]
[1753198477708,0.18804,119230.0,119220.0,0.2399467]
[1753198477910,0.18804,119230.0,119220.0,1.15553242]
[1753198478306,0.3556927,119230.0,119220.0,1.15553242]
[1753198478504,0.3556927,119230.0,119220.0,0.7382767]
[1753198478708,0.3556927,119230.0,119220.0,1.15553242]
[1753198479109,0.3749327,119230.0,119220.0,1.15553242]
[1753198479407,0.18804,119230.0,119220.0,1.15553242]
[1753198479611,0.3556926,119230.0,119220.0,1.15553242]
[1753198479806,0.18804,119230.0,119220.0,1.15553242]
[1753198480112,0.3556926,119230.0,119220.0,1.15553242]
[1753198481713,0.11154,119230.0,119220.0,1.15553242]
[1753198482211,0.3973198,119240.0,119230.0,0.2519126]
[1753198482408,0.3973198,119240.0,119230.0,1.15820832]
[1753198482608,0.3973198,119240.0,119230.0,1.76824832]
[1753198482812,0.3103798,119240.0,119230.0,1.76824832]
[1753198483014,0.336868,119250.0,119240.0,0.2518986]
[1753198483215,0.416538,119250.0,119240.0,0.7409386]
[1753198483410,0.416538,119250.0,119240.0,0.3801386]
[1753198483713,0.416538,119250.0,119240.0,0.10567]
[1753198483908,0.3746386,119240.0,119230.0,0.51012]
[1753198484113,0.3746386,119240.0,119230.0,1.2876926]
[1753198484306,0.14303,119240.0,119230.0,1.76812832]
[1753198484509,0.3106686,119240.0,119230.0,1.76812832]
[1753198484706,0.11185,119240.0,119230.0,1.76812832]
[1753198484917,0.2794886,119240.0,119230.0,1.76812832]
[1753198485112,0.11185,119240.0,119230.0,1.40732832]
[1753198485318,0.2794886,119240.0,119230.0,1.15820832]
[1753198485513,0.2794886,119240.0,119230.0,1.40724832]
[1753198485514,0.3746386,119240.0,119230.0,1.40724832]
[1753198485714,0.3553986,119240.0,119230.0,0.9899926]
[1753198486018,0.2794886,119240.0,119230.0,1.40724832]
[1753198486210,0.2794886,119240.0,119230.0,1.3507926]
[1753198486410,0.2794886,119240.0,119230.0,1.76804832]
[1753198486616,0.1768486,119240.0,119230.0,1.76804832]
[1753198486818,0.06047678,119260.0,119250.0,0.3801245]
[1753198487012,0.06047678,119260.0,119250.0,1.51898022]
[1753198487318,0.3248872,119270.0,119260.0,0.2210004]
[1753198487522,0.3560672,119270.0,119260.0,1.77940612]
[1753198487712,0.3560672,119270.0,119260.0,0.79736612]
[1753198487912,0.3560672,119270.0,119260.0,1.41848612]
[1753198488114,0.3560672,119270.0,119260.0,1.0009504]
[1753198488308,0.3560672,119270.0,119260.0,0.83322]
[1753198488513,0.7168672,119270.0,119260.0,0.11904]
[1753198488711,0.3746105,119260.0,119250.0,0.3801246]
[1753198488917,0.3746105,119260.0,119250.0,1.0008046]
[1753198489315,0.3746105,119260.0,119250.0,1.3616046]
[1753198489508,0.2949405,119260.0,119250.0,1.3616046]
[1753198489714,0.2502105,119260.0,119250.0,1.77886032]
[1753198490214,0.2502104,119260.0,119250.0,1.77886032]
[1753198490410,0.231063,119270.0,119260.0,0.1676104]
[1753198490616,0.3972664,119270.0,119260.0,1.15816612]
[1753198491015,0.2498964,119270.0,119260.0,1.15816612]
[1753198491217,0.2079973,119270.0,119260.0,1.15816612]
[1753198491520,0.2079973,119270.0,119260.0,1.77924612]
[1753198491921,0.2079973,119270.0,119260.0,1.15816612]
[1753198492121,0.2079973,119270.0,119260.0,1.77916612]
[1753198492927,0.1676073,119270.0,119260.0,1.77916612]
[1753198493112,0.1676073,119270.0,119260.0,1.84478939]
[1753198493517,0.1676073,119270.0,119260.0,1.85313222]
[1753198494525,0.1676073,119270.0,119260.0,1.85245222]
[1753198494725,0.1768173,119270.0,119260.0,1.85229222]
[1753198495020,0.1768173,119270.0,119260.0,1.23213222]
[1753198495222,0.2079973,119270.0,119260.0,1.85229222]
[1753198498228,0.2079973,119270.0,119260.0,1.45738807]
[1753198498425,0.2079973,119270.0,119260.0,1.87464379]
[1753198498624,0.2079973,119270.0,119260.0,1.25448379]
[1753198498816,0.3553673,119270.0,119260.0,1.25448379]
[1753198499021,0.3553673,119270.0,119260.0,1.87320379]
[1753198499522,0.3553673,119270.0,119260.0,0.82888524]
[1753198499729,0.7354073,119270.0,119260.0,0.89644327]
[1753198500026,0.7354073,119270.0,119250.0,0.02235157]
[1753198500027,0.3746104,119260.0,119250.0,0.02235157]
[1753198500324,1.16983606,119260.0,119250.0,1e-08]
[1753198500529,1.16983606,119260.0,119240.0,0.02235157]
[1753198500530,0.2502244,119250.0,119240.0,0.02235157]
[1753198500827,1.60477572,119250.0,119230.0,0.0298021]
[1753198501023,0.2410425,119230.0,119220.0,0.04811293]
[1753198501321,1.12425822,119230.0,119220.0,0.04811293]
[1753198501521,1.29201022,119230.0,119220.0,0.04811293]
[1753198502428,0.8747545,119230.0,119220.0,0.04811293]
[1753198502628,0.8747545,119230.0,119220.0,0.06705293]
[1753198502822,0.88329754,119230.0,119220.0,0.06705293]
[1753198503025,0.88329754,119230.0,119220.0,0.0487421]
[1753198503429,1.30055326,119230.0,119220.0,0.0487421]
[1753198503628,1.30055326,119230.0,119220.0,0.0298021]
[1753198503829,1.36836866,119230.0,119220.0,0.0298021]
[1753198504421,0.3462307,119210.0,119200.0,0.06323159]
[1753198504622,1.12428642,119210.0,119200.0,0.06323159]
[1753198504825,1.29206242,119210.0,119200.0,0.06323159]
[1753198505030,1.29206242,119210.0,119200.0,0.04470315]
[1753198506023,0.8748067,119210.0,119200.0,0.04470315]
[1753198506226,1.29206242,119210.0,119200.0,0.04470315]
[1753198506433,0.8748067,119210.0,119200.0,0.04470315]
[1753198506631,1.29206242,119210.0,119200.0,0.04470315]
[1753198506834,0.8748067,119210.0,119200.0,0.06364315]
[1753198507032,0.7070307,119210.0,119200.0,0.24107775]
[1753198507224,0.7070307,119210.0,119200.0,0.42689775]
[1753198507832,0.3462307,119210.0,119200.0,0.25920315]
[1753198508234,0.3462307,119210.0,119200.0,1.04685775]
[1753198508433,0.3473707,119210.0,119200.0,1.04685775]
[1753198508835,0.3473706,119210.0,119200.0,1.40765775]
[1753198509034,0.3473706,119210.0,119200.0,1.04685775]
[1753198509923,0.3473706,119210.0,119200.0,1.04885775]
[1753198510829,0.3473706,119210.0,119200.0,0.83646]
[1753198511023,0.3473706,119210.0,119200.0,0.2165]
[1753198512036,0.3473706,119210.0,119200.0,0.3841946]
[1753198512929,0.3473706,119210.0,119200.0,0.2165]
[1753198513738,0.3473706,119210.0,119200.0,0.3841946]
[1753198513940,0.3473706,119210.0,119200.0,0.23963341]
[1753198514139,0.3480806,119210.0,119200.0,0.78667341]
[1753198514541,0.3473706,119210.0,119200.0,0.16511341]
[1753198514840,1.12613632,119210.0,119200.0,0.04607341]
[1753198515133,1.12613632,119210.0,119200.0,0.02713341]
[1753198515935,1.29391232,119210.0,119200.0,0.02713341]
[1753198516140,1.29391232,119210.0,119200.0,0.02642341]
[1753198516637,0.2420387,119190.0,119180.0,1.13148252]
[1753198516935,0.3533328,119180.0,119170.0,0.12770315]
[1753198517140,1.13138852,119180.0,119170.0,0.01933]
[1753198517938,0.3533469,119170.0,119160.0,0.155441]
[1753198518242,0.3533469,119170.0,119160.0,0.01859785]
[1753198518243,1.75204262,119170.0,119160.0,0.01859785]
[1753198518441,1.91987462,119170.0,119160.0,0.01859785]
[1753198518642,1.76040143,119170.0,119160.0,0.01859785]
[1753198518842,1.92823343,119170.0,119160.0,0.01859785]
[1753198519743,1.92823343,119170.0,119160.0,0.02459785]
[1753198520245,1.92823343,119170.0,119160.0,0.02059785]
[1753198520439,1.57770034,119170.0,119160.0,0.10359785]
[1753198520639,1.57770034,119170.0,119160.0,0.16096785]
[1753198520840,1.57770034,119170.0,119160.0,0.10359785]
[1753198521039,1.57770034,119170.0,119160.0,0.03992785]
[1753198521241,1.57770034,119170.0,119160.0,0.02059785]
[1753198522750,1.99495606,119170.0,119160.0,0.02059785]
[1753198522941,1.63415606,119170.0,119160.0,0.02159785]
[1753198523145,1.04834834,119170.0,119160.0,0.16196785]
[1753198523345,1.40914834,119170.0,119160.0,0.16196785]
[1753198523839,1.04834834,119170.0,119160.0,0.16196785]
[1753198524050,1.40914834,119170.0,119160.0,0.16196785]
[1753198524449,1.82640406,119170.0,119160.0,0.11373785]
[1753198524646,1.82640406,119170.0,119160.0,0.02159785]
[1753198524845,1.82620406,119170.0,119160.0,0.02159785]
[1753198525250,1.20728406,119170.0,119160.0,0.02159785]
[1753198525551,1.99403606,119170.0,119160.0,0.02159785]
[1753198525953,0.353375,119150.0,119140.0,0.01933]
[1753198526158,0.3533891,119140.0,119130.0,0.77036582]
[1753198526457,0.3533891,119140.0,119130.0,0.01893582]
[1753198526458,1.13144482,119140.0,119130.0,0.01893582]
[1753198526654,0.2421373,119120.0,119110.0,0.69558]
[1753198526863,0.72251498,119120.0,119110.0,0.83585]
[1753198527048,0.72251498,119120.0,119110.0,0.75925]
[1753198527253,0.72251498,119120.0,119110.0,0.14037]
[1753198527451,0.72251498,119120.0,119110.0,0.13123]
[1753198527653,0.36909768,119120.0,119110.0,0.21697]
[1753198527853,0.01682603,119160.0,119150.0,0.13123]
[1753198527854,0.26845653,119160.0,119150.0,0.13123]
[1753198528054,0.31039723,119160.0,119150.0,0.90928572]
[1753198528254,0.26845653,119160.0,119150.0,0.659795]
[1753198528458,0.22651583,119160.0,119150.0,0.49203]
[1753198528658,0.29025583,119160.0,119150.0,0.51505854]
[1753198529560,0.29125583,119160.0,119150.0,0.51505854]
[1753198529861,0.29125583,119160.0,119150.0,0.51506942]
[1753198530261,0.29125583,119160.0,119150.0,0.58335512]
[1753198531166,0.90969583,119160.0,119150.0,0.58335512]
[1753198532155,1.85559955,119160.0,119150.0,0.13955512]
[1753198532361,0.167765,119150.0,119140.0,0.04823]
[1753198532566,1.26652072,119150.0,119140.0,0.07126964]
[1753198533265,0.64876072,119150.0,119140.0,0.07126964]
[1753198533462,1.26640072,119150.0,119140.0,0.07126964]
[1753198533662,1.26620072,119150.0,119140.0,0.07326964]
[1753198534163,1.62700072,119150.0,119140.0,0.07326964]
[1753198534363,1.79486472,119150.0,119140.0,0.02503964]
[1753198534560,1.79486472,119150.0,119140.0,0.00275834]
[1753198534961,1.79486472,119150.0,119140.0,4e-08]
[1753198535162,0.1677932,119130.0,119120.0,0.40903]
[1753198535361,0.2315332,119130.0,119120.0,0.52182561]
[1753198535560,0.0838927,119140.0,119120.0,0.52182561]
[1753198535761,0.2516806,119140.0,119130.0,1.07707892]
[1753198535962,0.2516806,119140.0,119130.0,1.31805881]
[1753198536168,0.2516806,119140.0,119130.0,1.73531453]
[1753198536667,0.2516806,119140.0,119130.0,1.2882632]
[1753198536865,0.2516806,119140.0,119130.0,1.70851892]
[1753198537062,0.2516806,119140.0,119130.0,1.12347]
[1753198537367,0.2516806,119140.0,119130.0,1.2912631]
[1753198538465,0.2516806,119140.0,119130.0,1.12347]
[1753198538664,0.2516806,119140.0,119130.0,1.2912631]
[1753198538866,0.2516806,119140.0,119130.0,1.12347]
[1753198539065,0.2516806,119140.0,119130.0,1.12547]
[1753198539467,0.2097137,119150.0,119140.0,0.302479]
[1753198539669,0.1677725,119150.0,119140.0,1.08053472]
[1753198539867,0.1677725,119150.0,119140.0,1.11033033]
[1753198540071,0.1677725,119150.0,119140.0,1.08053472]
[1753198540571,0.1677725,119150.0,119140.0,1.11033033]
[1753198541070,0.1677725,119150.0,119140.0,1.11233033]
[1753198541870,0.1677725,119150.0,119140.0,1.11333033]
[1753198545861,0.26846993,119160.0,119150.0,0.392775]
[1753198546061,0.0465318,119180.0,119170.0,0.2144668]
[1753198546266,0.2096576,119180.0,119170.0,2.07409252]
[1753198546974,0.2096576,119180.0,119170.0,1.6568368]
[1753198547473,0.2096576,119180.0,119170.0,2.07409252]
[1753198547972,0.2096576,119180.0,119170.0,2.10388813]
[1753198548372,0.2096576,119180.0,119170.0,1.51889561]
[1753198548872,0.2096576,119180.0,119170.0,1.51989561]
[1753198549478,0.2096576,119180.0,119170.0,1.58768099]
[1753198549980,0.2106576,119180.0,119170.0,1.51989561]
[1753198550378,0.69238332,119180.0,119170.0,0.88709561]
[1753198550573,0.69238332,119180.0,119170.0,1.15789561]
[1753198550872,0.2751276,119180.0,119170.0,1.15789561]
[1753198551176,0.2751276,119180.0,119170.0,1.1281]
[1753198551575,0.2751276,119180.0,119170.0,1.15789561]
[1753198551974,0.2797276,119180.0,119170.0,1.15789561]
[1753198552276,0.2152576,119180.0,119170.0,1.15789561]
[1753198552477,0.2152576,119180.0,119170.0,0.52629561]
[1753198552668,0.3259176,119180.0,119170.0,1.24708561]
[1753198554779,0.3259176,119180.0,119170.0,0.61660561]
[1753198554978,0.74317332,119180.0,119170.0,0.85581]
[1753198555282,0.74317332,119180.0,119170.0,0.22601]
[1753198555879,0.74604332,119180.0,119170.0,0.14638]
[1753198556078,0.74604332,119180.0,119170.0,0.06839]
[1753198557373,0.74317332,119180.0,119170.0,0.22601]
[1753198558984,0.3259176,119180.0,119170.0,0.22601]
[1753198559883,0.74317332,119180.0,119170.0,0.22601]
[1753198560486,0.3259176,119180.0,119170.0,0.22601]
[1753198561080,0.3259176,119180.0,119170.0,0.24844061]
[1753198561281,0.3259176,119180.0,119170.0,0.20644061]
[1753198561282,0.9728276,119180.0,119170.0,0.20644061]
[1753198562485,0.3459476,119180.0,119170.0,0.20644061]
[1753198562886,0.76320332,119180.0,119170.0,0.20644061]
[1753198563689,1.40188332,119180.0,119170.0,0.20644061]
[1753198563885,1.40475332,119180.0,119170.0,0.12681061]
[1753198564181,1.76555332,119180.0,119170.0,0.0937]
[1753198564388,1.76555332,119180.0,119170.0,0.11613061]
[1753198564588,1.40475332,119180.0,119170.0,0.11613061]
[1753198564981,1.76555332,119180.0,119170.0,0.11613061]
[1753198565182,0.2152576,119180.0,119170.0,0.98449633]
[1753198565382,0.2152576,119180.0,119170.0,0.56725501]
[1753198565578,0.2152576,119180.0,119170.0,0.73499225]
[1753198565781,0.2614476,119180.0,119170.0,0.56725545]
[1753198565982,0.2614476,119180.0,119170.0,0.54481]
[1753198566183,0.2614476,119180.0,119170.0,0.56725528]
[1753198567185,0.2614476,119180.0,119170.0,0.56725668]
[1753198568792,0.001,119180.0,119170.0,1.15959813]
[1753198569288,0.0002,119190.0,119180.0,0.3066427]
[1753198569593,0.1678946,119200.0,119190.0,0.3845486]
[1753198569886,0.1676946,119200.0,119190.0,1.18505736]
[1753198570283,0.2936588,119210.0,119200.0,0.1676946]
[1753198570490,0.2515357,119210.0,119200.0,1.3692946]
[1753198570687,0.2515357,119210.0,119200.0,1.39223831]
[1753198570884,0.1676805,119210.0,119200.0,1.89333863]
[1753198571493,0.1676805,119210.0,119200.0,1.85133863]
[1753198573191,0.1676805,119210.0,119200.0,1.22454371]
[1753198573390,0.1686805,119210.0,119200.0,1.39223831]
[1753198573791,0.1686805,119210.0,119200.0,1.22454371]
[1753198573990,0.1686805,119210.0,119200.0,1.22554371]
[1753198574186,0.1740505,119210.0,119200.0,0.86474371]
[1753198574385,0.2173805,119210.0,119200.0,0.86474371]
[1753198574596,0.2163805,119210.0,119200.0,1.22554371]
[1753198574898,0.73306622,119210.0,119200.0,1.22722371]
[1753198575093,0.73641622,119210.0,119200.0,0.15778371]
[1753198575396,1.09721622,119210.0,119200.0,0.07176371]
[1753198575793,1.09721622,119210.0,119200.0,0.04882]
[1753198575989,1.09721622,119210.0,119200.0,1e-07]
[1753198576193,0.3191886,119190.0,119180.0,0.13384]
[1753198576397,0.73644432,119190.0,119180.0,0.07073017]
[1753198576587,1.09724432,119190.0,119180.0,0.07073017]
[1753198576786,0.3158386,119190.0,119180.0,0.19618578]
[1753198576991,0.73309432,119190.0,119180.0,0.19618578]
[1753198577593,0.72057432,119190.0,119180.0,0.27154578]
[1753198577990,0.72057432,119190.0,119180.0,0.26621736]
[1753198578597,0.76806432,119190.0,119180.0,0.22421736]
[1753198579595,0.76806432,119190.0,119180.0,0.20175017]
[1753198580195,0.76806432,119190.0,119180.0,0.22421736]
[1753198580797,0.76806432,119190.0,119180.0,0.58490741]
[1753198580994,0.76806432,119190.0,119180.0,0.22410741]
[1753198581693,0.3508086,119190.0,119180.0,0.22410741]
[1753198581894,0.76806432,119190.0,119180.0,0.22410741]
[1753198582390,0.77141432,119190.0,119180.0,0.22410741]
[1753198582994,0.76806432,119190.0,119180.0,0.22410741]
[1753198584395,0.76806432,119190.0,119180.0,0.15074741]
[1753198584590,0.77141432,119190.0,119180.0,0.15074741]
[1753198584993,0.3541586,119190.0,119180.0,0.15074741]
[1753198585195,0.76806432,119190.0,119180.0,0.22410741]
[1753198585396,0.3508086,119190.0,119180.0,0.22410741]
[1753198585696,0.76806432,119190.0,119180.0,0.20164022]
[1753198586304,0.76806432,119190.0,119180.0,0.15964022]
[1753198586497,0.76806432,119190.0,119180.0,0.19174741]
[1753198586697,0.2839286,119190.0,119180.0,0.16928022]
[1753198586900,0.1677086,119190.0,119180.0,1.13752583]
[1753198587205,0.209828,119200.0,119190.0,0.3164687]
[1753198587398,0.2614254,119210.0,119200.0,0.2506946]
[1753198587594,0.61247914,119220.0,119200.0,0.92681572]
[1753198587595,0.27392082,119220.0,119200.0,0.92681572]
[1753198587798,0.31584092,119220.0,119210.0,1.13164]
[1753198588003,0.31068021,119220.0,119210.0,1.2993205]
[1753198588399,0.31068021,119220.0,119210.0,1.19972]
[1753198588599,0.35291021,119220.0,119210.0,1.19972]
[1753198588998,0.39624021,119220.0,119210.0,1.19972]
[1753198589200,0.44373021,119220.0,119210.0,1.19972]
[1753198589693,0.44473021,119220.0,119210.0,1.19972]
[1753198590097,0.39924021,119220.0,119210.0,1.19972]
[1753198591005,0.39824021,119220.0,119210.0,1.19972]
[1753198591206,0.39924021,119220.0,119210.0,1.19972]
[1753198591508,0.39924021,119220.0,119210.0,1.26743386]
[1753198592107,0.44673021,119220.0,119210.0,1.26743386]
[1753198592411,0.44673021,119220.0,119210.0,1.28990105]
[1753198592905,0.94759593,119220.0,119210.0,1.28990105]
[1753198593311,0.94759593,119220.0,119210.0,1.26743386]
[1753198593511,0.94759593,119220.0,119210.0,0.49427386]
[1753198593813,0.94759593,119220.0,119210.0,0.80133386]
[1753198594013,0.94759593,119220.0,119210.0,0.83123386]
[1753198594306,0.94759593,119220.0,119210.0,0.81933386]
[1753198594908,0.94759593,119220.0,119210.0,0.86259386]
[1753198595609,0.94759593,119220.0,119210.0,0.24255386]
[1753198596207,1.30839593,119220.0,119210.0,0.24255386]
[1753198596407,0.3843405,119210.0,119200.0,1.17564719]
[1753198596605,0.80159622,119210.0,119200.0,0.46098719]
[1753198597214,0.80159622,119210.0,119200.0,0.52674719]
[1753198597609,1.16239622,119210.0,119200.0,0.10018719]
[1753198597814,0.3843546,119200.0,119190.0,1.07922719]
[1753198598012,0.80161032,119200.0,119190.0,1.07922719]
[1753198598217,0.80161032,119200.0,119190.0,0.52674719]
[1753198599022,0.80161032,119200.0,119190.0,0.5565428]
[1753198599224,0.80161032,119200.0,119190.0,0.55684719]
[1753198599426,0.80161032,119200.0,119190.0,0.5876428]
[1753198599722,0.80161032,119200.0,119190.0,0.60110719]
[1753198600123,0.80161032,119200.0,119190.0,0.60210719]
[1753198600718,0.80161032,119200.0,119190.0,0.24130719]
[1753198600921,0.80161032,119200.0,119190.0,0.10218719]
[1753198601121,0.80161032,119200.0,119190.0,0.07972]
[1753198601318,1.16241032,119200.0,119190.0,0.002]
[1753198602028,0.3879288,119190.0,119180.0,0.72001719]
[1753198602222,0.80518452,119190.0,119180.0,0.10289719]
[1753198602420,0.80518452,119190.0,119170.0,1.02631075]
[1753198602421,0.3916629,119180.0,119170.0,0.40955075]
[1753198602726,0.81383888,119180.0,119170.0,0.39059561]
[1753198603030,0.81383888,119180.0,119170.0,0.02244312]
[1753198603031,1.17463888,119180.0,119170.0,0.02244312]
[1753198604015,1.17463888,119180.0,119170.0,0.02644312]
[1753198604830,1.17463888,119180.0,119170.0,0.07606312]
[1753198605027,1.17463888,119180.0,119170.0,0.07906312]
[1753198605433,0.75738316,119180.0,119170.0,0.08875312]
[1753198605625,1.79039888,119180.0,119170.0,0.14085312]
[1753198605928,1.79039888,119180.0,119170.0,0.21177312]
[1753198607225,1.37314316,119180.0,119170.0,0.21177312]
[1753198607427,1.79039888,119180.0,119170.0,0.21177312]
[1753198607931,1.79039888,119180.0,119170.0,0.14085312]
[1753198608329,1.79039888,119180.0,119170.0,0.11973312]
[1753198608724,1.79039888,119180.0,119170.0,0.07906312]
[1753198609030,1.79039888,119180.0,119170.0,0.02944312]
[1753198609430,1.79039888,119180.0,119170.0,0.00578632]
[1753198610430,1.79039888,119180.0,119170.0,0.05540632]
[1753198610734,1.79039888,119180.0,119170.0,0.06509632]
[1753198610924,1.79039888,119180.0,119170.0,0.09607632]
[1753198611132,0.39658316,119180.0,119170.0,0.59375632]
[1753198611335,0.35065316,119180.0,119170.0,0.62355193]
[1753198612536,0.39658316,119180.0,119170.0,0.62355193]
[1753198613431,0.1774729,119180.0,119170.0,0.62355193]
[1753198613730,0.2462329,119180.0,119170.0,0.62355193]
[1753198613930,0.2462329,119180.0,119170.0,0.79128873]
[1753198614134,0.1774729,119180.0,119170.0,0.62355193]
[1753198614433,0.18244585,119180.0,119170.0,0.62355193]
[1753198614627,0.29809585,119180.0,119170.0,0.62355193]
[1753198614830,0.2462329,119180.0,119170.0,0.62355193]
[1753198615030,0.1774729,119180.0,119170.0,0.79128873]
[1753198615333,0.1677229,119180.0,119170.0,0.79128873]
[1753198615831,0.1677229,119180.0,119170.0,1.20854445]
[1753198616832,0.1677229,119180.0,119170.0,0.79128873]
[1753198617032,0.1677229,119180.0,119170.0,0.62355193]
[1753198619129,0.1677229,119180.0,119170.0,0.79128873]
[1753198620331,0.1677229,119180.0,119170.0,0.76149312]
[1753198620729,0.1677229,119180.0,119170.0,1.17874884]
[1753198621134,0.1677229,119180.0,119170.0,0.76149312]
[1753198621332,0.1677229,119180.0,119170.0,1.17874884]
[1753198621527,0.1677229,119180.0,119170.0,0.76149312]
[1753198621729,0.1677229,119180.0,119170.0,1.17874884]
[1753198621929,0.1677229,119180.0,119170.0,1.34657284]
[1753198622335,0.1677229,119180.0,119170.0,1.37636845]
[1753198623035,0.1464629,119180.0,119170.0,1.37636845]
[1753198623233,0.2517683,119190.0,119180.0,0.3509027]
[1753198623433,0.2517683,119190.0,119180.0,1.74303842]
[1753198623434,0.2515683,119190.0,119180.0,1.74303842]
[1753198623634,0.2515683,119190.0,119180.0,1.3257827]
[1753198623837,0.2515683,119190.0,119180.0,1.35557831]
[1753198624037,0.2515683,119190.0,119180.0,1.77283403]
[1753198624641,0.2515683,119190.0,119180.0,1.73083403]
[1753198625840,0.2515683,119190.0,119180.0,1.74674157]
[1753198627336,0.1677086,119190.0,119180.0,1.74874157]
[1753198627737,0.227103,119200.0,119190.0,0.3508886]
[1753198627938,0.272833,119200.0,119190.0,1.15884224]
[1753198628138,0.450843,119200.0,119190.0,0.74158652]
[1753198628338,0.450843,119200.0,119190.0,0.74284652]
[1753198629545,0.450843,119200.0,119190.0,0.74384652]
[1753198629744,0.450843,119200.0,119190.0,0.57613792]
[1753198630044,0.450843,119200.0,119190.0,0.53969792]
[1753198630237,0.86809872,119200.0,119190.0,1.08273792]
[1753198630642,0.450843,119200.0,119190.0,1.35214652]
[1753198631039,0.403953,119200.0,119190.0,1.35214652]
[1753198631248,0.293363,119200.0,119190.0,1.35293652]
[1753198631647,0.360683,119200.0,119190.0,1.35293652]
[1753198632853,0.371173,119200.0,119190.0,1.35293652]
[1753198634649,0.371173,119200.0,119190.0,1.31093652]
[1753198634850,0.449283,119200.0,119190.0,1.31014652]
[1753198637351,1.51982214,119200.0,119190.0,0.03089792]
[1753198637551,1.51982214,119200.0,119190.0,0.001]
[1753198637751,0.3915786,119190.0,119180.0,0.02989792]
[1753198637950,1.10724817,119190.0,119180.0,0.02989792]
[1753198638151,0.3915927,119180.0,119170.0,1.00453792]
[1753198638358,0.74646227,119180.0,119170.0,1.00453792]
[1753198639157,0.80769022,119180.0,119170.0,1.00453792]
[1753198640761,0.80769022,119180.0,119170.0,1.00653792]
[1753198641061,0.80769022,119180.0,119170.0,1.00953792]
[1753198643757,0.80769022,119180.0,119170.0,0.03489792]
[1753198643758,1.16849022,119180.0,119170.0,0.03489792]
[1753198643964,1.16849022,119180.0,119170.0,0.005]
[1753198644264,1.16849022,119180.0,119170.0,0.03489792]
[1753198644965,0.3916067,119170.0,119160.0,0.05237232]
[1753198645167,1.79949441,119170.0,119160.0,0.02992387]
[1753198645364,1.79945441,119170.0,119160.0,0.02992387]
[1753198645763,0.82489441,119170.0,119160.0,0.43225387]
[1753198645966,0.82489441,119170.0,119160.0,0.4481]
[1753198646257,0.82789441,119170.0,119160.0,0.49321]
[1753198646457,0.82789441,119170.0,119160.0,0.51292]
[1753198646763,0.36407689,119170.0,119160.0,1.2946008]
[1753198646963,0.33368689,119170.0,119160.0,1.2946008]
[1753198647360,0.33368689,119170.0,119160.0,1.12685]
[1753198647564,0.82789441,119170.0,119160.0,1.01986]
[1753198648262,0.41179689,119170.0,119160.0,1.01986]
[1753198648470,0.82789441,119170.0,119160.0,1.01986]
[1753198648762,0.41379689,119170.0,119160.0,1.01986]
[1753198648968,0.41079689,119170.0,119160.0,1.08064]
[1753198649267,0.41279689,119170.0,119160.0,1.3005608]
[1753198649469,0.41379689,119170.0,119160.0,1.3005608]
[1753198650367,0.41379689,119170.0,119160.0,0.77248]
[1753198650561,0.82989441,119170.0,119160.0,1.13328]
[1753198650969,0.82989441,119170.0,119160.0,1.06051]
[1753198652266,0.82989441,119170.0,119160.0,1.10268]
[1753198654269,0.82989441,119170.0,119160.0,1.01851]
[1753198659276,0.41379689,119170.0,119160.0,1.04964]
[1753198659474,0.41379689,119170.0,119160.0,1.2193308]
[1753198661273,0.76884575,119170.0,119160.0,1.2193308]
[1753198661474,0.72112575,119170.0,119160.0,1.2193308]
[1753198661673,0.65956575,119170.0,119160.0,1.2193308]
[1753198661874,0.18992689,119170.0,119160.0,1.57437966]
[1753198662177,0.00967019,119170.0,119160.0,2.05526052]
[1753198662572,0.1679324,119180.0,119170.0,0.1677367]
[1753198662879,0.3889167,119190.0,119180.0,0.1677226]
[1753198663081,0.3887167,119190.0,119180.0,1.49993134]
[1753198664178,0.3674967,119190.0,119180.0,1.49993134]
[1753198665673,0.2991067,119190.0,119180.0,1.50093134]
[1753198665879,0.2515767,119190.0,119180.0,1.50093134]
[1753198666876,0.2096476,119190.0,119180.0,1.50093134]
[1753198667081,0.1677202,119190.0,119180.0,1.50093134]
[1753198668499,0.1677202,119190.0,119180.0,1.86173134]
[1753198669485,0.1677202,119190.0,119180.0,1.88417097]
[1753198669886,0.2152502,119190.0,119180.0,1.84217097]
[1753198670084,0.2836402,119190.0,119180.0,1.84217097]
[1753198670389,0.2836402,119190.0,119180.0,1.86458148]
[1753198671493,0.2836402,119190.0,119180.0,1.8616216]
[1753198671684,0.3048602,119190.0,119180.0,1.50657274]
[1753198671885,0.74984906,119190.0,119180.0,1.3356]
[1753198672086,0.74984906,119190.0,119180.0,1.5033226]
[1753198673889,0.3048602,119190.0,119180.0,1.85837146]
[1753198674092,0.2836402,119190.0,119180.0,1.85837146]
[1753198674292,0.2152502,119190.0,119180.0,1.9032216]
[1753198674489,0.1677202,119190.0,119180.0,1.9032216]
[1753198675388,0.1677202,119190.0,119180.0,1.93309319]
[1753198675597,0.4308229,119200.0,119190.0,0.1677086]
[1753198675798,0.4306229,119200.0,119190.0,0.93583258]
[1753198675994,0.11612,119210.0,119200.0,0.1676945]
[1753198676192,0.11592,119210.0,119200.0,1.52175453]
[1753198676388,0.3469338,119220.0,119210.0,0.1676804]